bitfinex-derivatives/quotes_BTCF0:USTF0_20240829
["timestamp","ask_amount","ask_price","bid_price","bid_amount"]
[1724910485129,0.2211502,59418.0,59417.0,0.59011262]
[1724910485635,0.2211502,59418.0,59417.0,1.77916162]
[1724910485838,0.3608,59430.0,59417.0,0.59011262]
[1724910486143,0.3608,59430.0,59429.0,0.204112]
[1724910486527,0.53839046,59430.0,59429.0,0.204112]
[1724910486939,0.55239046,59430.0,59429.0,0.204112]
[1724910487230,0.56539046,59430.0,59429.0,0.204112]
[1724910487431,0.55139046,59430.0,59429.0,0.204112]
[1724910487636,0.56539046,59430.0,59429.0,0.205112]
[1724910488835,0.20459046,59430.0,59429.0,0.205112]
[1724910489040,0.10252974,59430.0,59429.0,1.395024]
[1724910489538,0.10252974,59430.0,59429.0,0.710912]
[1724910490136,0.10252974,59430.0,59429.0,0.590912]
[1724910490329,0.10252974,59430.0,59429.0,0.710912]
[1724910490540,0.09752974,59430.0,59429.0,0.710912]
[1724910490847,0.08852974,59430.0,59429.0,0.710912]
[1724910492235,0.08852974,59430.0,59429.0,1.310912]
[1724910493333,0.08852974,59430.0,59429.0,1.33386551]
[1724910495136,0.08852974,59430.0,59429.0,1.41797751]
[1724910495838,0.08852974,59430.0,59429.0,2.13957751]
[1724910497035,0.08852974,59430.0,59429.0,2.05546551]
[1724910497234,0.08852974,59430.0,59429.0,2.13957751]
[1724910498437,0.08352974,59430.0,59429.0,1.54557751]
[1724910500841,0.08352974,59430.0,59429.0,2.14557751]
[1724910501235,0.08352974,59430.0,59429.0,2.14157751]
[1724910501555,0.08352974,59430.0,59429.0,2.14557751]
[1724910501842,0.08352974,59430.0,59429.0,2.14157751]
[1724910502032,0.08352974,59430.0,59429.0,2.14557751]
[1724910504138,0.08352974,59430.0,59429.0,2.14157751]
[1724910504543,0.08352974,59430.0,59429.0,2.14557751]
[1724910504738,0.07362974,59430.0,59429.0,2.22968951]
[1724910505444,0.07362974,59430.0,59429.0,2.22568951]
[1724910505645,0.07362974,59430.0,59429.0,2.14757751]
[1724910506041,0.07362974,59430.0,59429.0,2.14357751]
[1724910506235,0.07362974,59430.0,59429.0,2.23168951]
[1724910506646,0.07362974,59430.0,59429.0,2.22568951]
[1724910507042,0.07362974,59430.0,59429.0,2.14557751]
[1724910508444,0.07362974,59430.0,59429.0,2.14757751]
[1724910509053,0.07362974,59430.0,59429.0,2.14557751]
[1724910510246,0.07362974,59430.0,59429.0,2.14757751]
[1724910510443,0.07362974,59430.0,59429.0,2.23168951]
[1724910512050,0.01436744,59430.0,59429.0,2.23168951]
[1724910512841,0.01436744,59430.0,59429.0,2.22968951]
[1724910512842,0.00654428,59430.0,59429.0,2.22968951]
[1724910513054,0.00016697,59435.0,59434.0,0.16821]
[1724910513239,0.00016697,59435.0,59434.0,0.64901]
[1724910513444,0.18950026,59435.0,59434.0,0.733115]
[1724910514549,0.18950026,59435.0,59434.0,0.734115]
[1724910517453,0.12,59453.0,59434.0,0.734115]
[1724910517454,0.36216,59463.0,59445.0,0.08409]
[1724910517650,0.0998,59460.0,59459.0,0.08407]
[1724910518153,0.29438015,59460.0,59459.0,0.08407]
[1724910518958,0.29538015,59460.0,59459.0,0.20507]
[1724910520054,0.29538015,59460.0,59459.0,0.20607]
[1724910520555,0.29538015,59460.0,59459.0,0.14565319]
[1724910521552,0.29538015,59460.0,59459.0,0.22972319]
[1724910525755,0.29538015,59460.0,59459.0,0.10972319]
[1724910525956,0.29538015,59460.0,59459.0,0.22972319]
[1724910530766,0.29538015,59460.0,59459.0,0.59052319]
[1724910537776,0.29538015,59460.0,59459.0,0.22972319]
[1724910538076,0.29538015,59460.0,59459.0,0.59052319]
[1724910545274,0.29538015,59460.0,59459.0,0.22972319]
[1724910545471,0.37944915,59460.0,59459.0,0.59052319]
[1724910546562,0.40329295,59460.0,59459.0,0.59052319]
[1724910547775,0.40329295,59460.0,59459.0,0.002]
[1724910548070,0.48736195,59460.0,59459.0,0.002]
[1724910549976,0.99192195,59460.0,59459.0,0.002]
[1724910550674,0.99192195,59460.0,59459.0,0.001]
[1724910550871,0.99192195,59460.0,59459.0,0.002]
[1724910551379,1.59092195,59460.0,59459.0,0.001]
[1724910551570,1.59192195,59460.0,59459.0,0.001]
[1724910551766,1.59192195,59460.0,59459.0,0.002]
[1724910553074,1.59092195,59460.0,59459.0,0.001]
[1724910553274,1.59192195,59460.0,59459.0,0.002]
[1724910553876,1.95272195,59460.0,59459.0,0.002]
[1724910554275,1.95272195,59460.0,59459.0,0.001]
[1724910554476,1.95272195,59460.0,59459.0,0.002]
[1724910555080,0.084076,59455.0,59454.0,0.00025227]
[1724910555281,0.082076,59455.0,59454.0,0.08432927]
[1724910555474,0.26821868,59455.0,59454.0,0.08432927]
[1724910556881,0.26721868,59455.0,59454.0,0.08432927]
[1724910557081,0.26721868,59455.0,59454.0,0.20432927]
[1724910557281,0.26721868,59455.0,59454.0,0.20532927]
[1724910557477,0.26721868,59455.0,59454.0,0.20632927]
[1724910557679,0.26921868,59455.0,59454.0,0.12225227]
[1724910557987,0.26921868,59455.0,59454.0,0.12125227]
[1724910558280,0.26921868,59455.0,59454.0,0.12225227]
[1724910558880,0.26921868,59455.0,59454.0,0.12125227]
[1724910559080,0.26921868,59455.0,59454.0,0.12225227]
[1724910559876,0.26721868,59455.0,59454.0,0.12225227]
[1724910560183,0.27021868,59455.0,59454.0,0.12225227]
[1724910560784,0.27021868,59455.0,59454.0,0.00225227]
[1724910560980,0.39021868,59455.0,59454.0,0.00225227]
[1724910561975,0.27021868,59455.0,59454.0,0.08632927]
[1724910563479,0.26721868,59455.0,59454.0,0.08532927]
[1724910563780,0.27021868,59455.0,59454.0,0.08632927]
[1724910564384,0.27021868,59455.0,59454.0,0.08532927]
[1724910564585,0.27021868,59455.0,59454.0,0.08632927]
[1724910564786,0.27021868,59455.0,59454.0,0.08532927]
[1724910564787,0.26721868,59455.0,59454.0,0.08532927]
[1724910565089,0.27021868,59455.0,59454.0,0.08632927]
[1724910566291,0.18914268,59455.0,59454.0,0.08632927]
[1724910566478,0.18914268,59455.0,59454.0,0.27192927]
[1724910568489,0.18614268,59455.0,59454.0,0.26992927]
[1724910568680,0.18914268,59455.0,59454.0,0.27192927]
[1724910568884,0.003,59455.0,59454.0,0.27192927]
[1724910569187,0.19331697,59455.0,59454.0,0.27192927]
[1724910569588,0.19331697,59455.0,59454.0,0.63272927]
[1724910575891,0.19331697,59455.0,59454.0,0.99352927]
[1724910578991,0.19331697,59455.0,59454.0,0.63272927]
[1724910584795,0.19331697,59455.0,59454.0,0.99352927]
[1724910590496,0.00828792,59478.0,59454.0,2.01405227]
[1724910590698,0.0882,59486.0,59483.0,0.084036]
[1724910591000,0.0882,59486.0,59485.0,0.564833]
[1724910591306,0.0882,59486.0,59485.0,0.4808]
[1724910591508,0.19224615,59486.0,59485.0,0.564833]
[1724910591799,0.1908,59494.0,59485.0,0.4808]
[1724910591800,0.31224615,59493.0,59485.0,0.4808]
[1724910591996,0.31224615,59493.0,59484.0,0.3608]
[1724910591997,0.12,59488.0,59484.0,0.3608]
[1724910592198,0.084033,59485.0,59484.0,0.3608]
[1724910592604,0.26128507,59485.0,59484.0,0.3608]
[1724910592806,0.07804,59481.0,59479.0,0.12025227]
[1724910593007,0.0873,59480.0,59479.0,0.12025227]
[1724910593305,0.26455207,59480.0,59479.0,0.12025227]
[1724910593502,0.26355207,59480.0,59479.0,0.12025227]
[1724910593904,0.34759207,59480.0,59479.0,0.12025227]
[1724910594103,0.084051,59473.0,59468.0,0.3608]
[1724910594306,0.09,59472.0,59470.0,0.084054]
[1724910594499,0.27327409,59472.0,59470.0,0.084054]
[1724910595301,0.27327409,59472.0,59471.0,0.084053]
[1724910595802,0.27227409,59472.0,59471.0,0.084053]
[1724910596395,0.27827409,59472.0,59471.0,0.084053]
[1724910597104,0.28427409,59472.0,59471.0,0.085053]
[1724910597704,0.28427409,59472.0,59471.0,0.086053]
[1724910603807,0.36832609,59472.0,59471.0,0.002]
[1724910604108,1.55681809,59472.0,59471.0,0.002]
[1724910604414,0.95681809,59472.0,59471.0,0.002]
[1724910605314,1.55681809,59472.0,59471.0,0.002]
[1724910605515,0.36832609,59472.0,59471.0,0.002]
[1724910605909,0.27932609,59472.0,59471.0,0.002]
[1724910606511,0.27932609,59472.0,59471.0,0.086053]
[1724910608928,1.07376609,59472.0,59471.0,0.002]
[1724910610031,0.27932609,59472.0,59471.0,0.002]
[1724910610443,0.19527409,59472.0,59471.0,0.086053]
[1724910611629,0.084045,59477.0,59476.0,0.084046]
[1724910611930,0.26969727,59477.0,59476.0,0.084046]
[1724910612827,0.26969727,59477.0,59476.0,0.085046]
[1724910613034,0.18565227,59477.0,59476.0,0.085046]
[1724910613234,0.18565227,59477.0,59476.0,0.086046]
[1724910613429,0.2649597,59479.0,59476.0,0.002]
[1724910613630,0.00136,59483.0,59482.0,0.084038]
[1724910613825,0.00136,59483.0,59480.0,0.084039]
[1724910613826,0.084037,59483.0,59480.0,0.084039]
[1724910614029,0.1809177,59478.0,59476.0,0.3628]
[1724910614231,0.1809177,59483.0,59476.0,0.3628]
[1724910614536,0.084035,59484.0,59481.0,0.084038]
[1724910614738,0.26834067,59484.0,59483.0,0.084036]
[1724910614935,0.084035,59484.0,59483.0,0.084036]
[1724910615345,0.26834067,59484.0,59483.0,0.084036]
[1724910615531,0.26834067,59484.0,59480.0,0.08404]
[1724910615532,0.084039,59482.0,59480.0,0.08404]
[1724910615837,0.17493943,59481.0,59480.0,0.08404]
[1724910616037,0.34747843,59481.0,59480.0,0.08404]
[1724910616337,0.173539,59481.0,59480.0,0.08404]
[1724910616638,0.083043,59479.0,59477.0,0.08429627]
[1724910616826,0.083043,59479.0,59477.0,0.00025227]
[1724910617025,0.19495918,59478.0,59477.0,0.08429727]
[1724910617231,0.19295918,59478.0,59477.0,0.08429727]
[1724910617434,0.17974739,59480.0,59479.0,0.084042]
[1724910617629,0.168074,59483.0,59480.0,0.08404]
[1724910617826,0.0895,59491.0,59477.0,0.18125227]
[1724910618039,0.0895,59491.0,59490.0,0.084026]
[1724910618335,0.26924739,59491.0,59490.0,0.084026]
[1724910620230,0.27024739,59491.0,59490.0,0.085026]
[1724910620432,0.27024739,59491.0,59490.0,0.086026]
[1724910621331,0.18049512,59491.0,59490.0,0.170052]
[1724910621643,0.18049512,59491.0,59490.0,0.086026]
[1724910629633,0.17649512,59491.0,59490.0,0.086026]
[1724910630444,0.17649512,59491.0,59490.0,1.190306]
[1724910631451,0.17649512,59491.0,59490.0,0.590306]
[1724910631639,0.02067802,59491.0,59490.0,1.190306]
[1724910632447,0.01967802,59491.0,59490.0,1.190306]
[1724910633343,0.01967802,59491.0,59490.0,1.188306]
[1724910633739,0.01967802,59491.0,59490.0,0.084026]
[1724910633950,0.01967802,59491.0,59490.0,0.085026]
[1724910634142,0.01967802,59491.0,59490.0,0.086026]
[1724910635042,0.01967802,59491.0,59490.0,0.001]
[1724910635737,0.01967802,59491.0,59488.0,0.3608]
[1724910636248,0.10370302,59491.0,59488.0,0.3608]
[1724910636447,0.0911,59490.0,59488.0,0.3608]
[1724910636642,0.0901,59490.0,59488.0,0.3608]
[1724910636838,0.19209095,59489.0,59488.0,0.3608]
[1724910637545,0.19209095,59489.0,59488.0,0.3628]
[1724910638249,0.19209095,59489.0,59488.0,0.446829]
[1724910639644,0.19209095,59489.0,59488.0,0.445829]
[1724910639850,0.19309095,59489.0,59488.0,0.446829]
[1724910640246,0.27711895,59489.0,59488.0,0.3628]
[1724910641251,0.27711895,59489.0,59488.0,0.446829]
[1724910644049,0.45241895,59489.0,59488.0,0.002]
[1724910645347,1.47267095,59489.0,59482.0,0.02364656]
[1724910645544,0.3608,59484.0,59478.0,0.084043]
[1724910645844,0.185967,59483.0,59478.0,0.084043]
[1724910646241,0.084043,59478.0,59474.0,0.084048]
[1724910646441,0.084043,59478.0,59477.0,0.02402141]
[1724910646642,0.26751347,59478.0,59477.0,0.00025227]
[1724910647252,0.26551347,59478.0,59477.0,0.00025227]
[1724910647876,0.26551347,59478.0,59477.0,0.00425227]
[1724910648549,0.084056,59469.0,59467.0,0.444858]
[1724910648752,0.3578,59474.0,59467.0,0.444858]
[1724910648949,0.18241571,59468.0,59463.0,0.084064]
[1724910649150,0.084061,59466.0,59463.0,0.084064]
[1724910649552,0.26661613,59465.0,59463.0,0.084064]
[1724910649747,0.070063,59464.0,59463.0,0.084064]
[1724910650049,0.084064,59463.0,59459.0,0.00025227]
[1724910650454,0.27802412,59463.0,59459.0,0.00025227]
[1724910651548,0.27702412,59463.0,59462.0,0.444866]
[1724910651754,0.27602412,59463.0,59462.0,0.444866]
[1724910652149,0.28202412,59463.0,59462.0,0.445866]
[1724910652657,0.28902412,59463.0,59462.0,0.446866]
[1724910652852,0.28902412,59463.0,59462.0,0.3628]
[1724910653053,0.28902412,59463.0,59462.0,0.002]
[1724910654859,0.20696012,59463.0,59462.0,0.002]
[1724910655359,0.20696012,59463.0,59462.0,0.086066]
[1724910656053,0.20696012,59463.0,59462.0,0.446866]
[1724910657848,0.20696012,59463.0,59462.0,0.951386]
[1724910658650,0.20696012,59463.0,59462.0,0.446866]
[1724910661549,0.20696012,59463.0,59462.0,0.951386]
[1724910661750,0.20696012,59463.0,59462.0,1.551386]
[1724910662057,0.20696012,59463.0,59462.0,0.951386]
[1724910662355,0.20070785,59463.0,59462.0,1.635452]
[1724910662559,8.5e-07,59463.0,59462.0,1.719518]
[1724910662855,0.00025227,59470.0,59469.0,0.168112]
[1724910663053,0.00025227,59470.0,59469.0,0.818912]
[1724910663256,0.18494817,59470.0,59469.0,0.734856]
[1724910664163,0.18494817,59470.0,59469.0,0.444856]
[1724910664456,0.20294817,59470.0,59469.0,0.446856]
[1724910664855,0.20294817,59470.0,59469.0,0.46865036]
[1724910666850,0.20294817,59470.0,59469.0,0.38459436]
[1724910667057,0.20294817,59470.0,59469.0,0.3628]
[1724910669051,0.20294817,59470.0,59469.0,0.446856]
[1724910670565,0.19694817,59470.0,59469.0,0.446856]
[1724910672263,0.19694817,59470.0,59469.0,0.3628]
[1724910673167,0.19694817,59470.0,59469.0,0.446856]
[1724910674967,0.28100217,59470.0,59469.0,0.002]
[1724910675464,0.19694817,59470.0,59469.0,0.086056]
[1724910679668,0.19694817,59470.0,59469.0,0.446856]
[1724910686977,0.19694817,59470.0,59469.0,0.530912]
[1724910688574,0.18594817,59470.0,59469.0,0.529912]
[1724910688782,0.18594817,59470.0,59469.0,0.55162735]
[1724910689287,0.18494817,59470.0,59469.0,0.46657135]
[1724910690072,0.18494817,59470.0,59469.0,0.55062735]
[1724910690375,0.18994817,59470.0,59469.0,0.55062735]
[1724910690767,0.18994817,59470.0,59469.0,0.46657135]
[1724910691166,0.18994817,59470.0,59469.0,0.55097135]
[1724910691371,0.18994817,59470.0,59469.0,0.63502735]
[1724910692572,0.18994817,59470.0,59469.0,1.73950735]
[1724910693680,0.18994817,59470.0,59469.0,1.65545135]
[1724910693872,0.18994817,59470.0,59469.0,0.55097135]
[1724910694180,0.18994817,59470.0,59469.0,0.63502735]
[1724910694681,0.18994817,59470.0,59469.0,0.55097135]
[1724910694880,0.18994817,59470.0,59469.0,0.63502735]
[1724910695080,0.18994817,59470.0,59469.0,0.55097135]
[1724910695279,0.18994817,59470.0,59469.0,0.63502735]
[1724910695488,0.18994817,59470.0,59469.0,0.27422735]
[1724910695682,0.18994817,59470.0,59469.0,0.82737135]
[1724910708091,0.18994817,59470.0,59469.0,0.91142735]
[1724910709687,0.18994817,59470.0,59469.0,0.82737135]
[1724910714799,0.03573161,59480.0,59469.0,0.74331535]
[1724910714996,0.0908,59481.0,59480.0,0.08404]
[1724910715397,0.27080157,59481.0,59480.0,0.08404]
[1724910717600,0.27680157,59481.0,59480.0,0.44584]
[1724910718497,0.27680157,59481.0,59480.0,0.44684]
[1724910719497,0.27680157,59481.0,59480.0,0.53088]
[1724910719697,0.18600157,59481.0,59480.0,0.53088]
[1724910721189,0.18600157,59481.0,59480.0,0.46854409]
[1724910727306,0.18600157,59481.0,59480.0,0.55258409]
[1724910727499,0.18600157,59481.0,59480.0,0.46854409]
[1724910728600,0.18600157,59481.0,59480.0,0.82934409]
[1724910729604,0.18600157,59481.0,59480.0,0.91338409]
[1724910729807,0.18600157,59481.0,59480.0,0.82934409]
[1724910730003,0.18600157,59481.0,59480.0,0.91338409]
[1724910736207,0.18600157,59481.0,59480.0,0.91238409]
[1724910737204,0.18600157,59481.0,59480.0,0.91138409]
[1724910737714,0.18600157,59481.0,59480.0,0.99578409]
[1724910738502,0.00869149,59481.0,59480.0,2.18418409]
[1724910738702,0.084,59492.0,59491.0,0.084025]
[1724910738904,0.084,59492.0,59491.0,0.444825]
[1724910739108,0.27123753,59492.0,59491.0,0.444825]
[1724910739304,0.27123753,59492.0,59491.0,0.805625]
[1724910739905,0.27123753,59492.0,59491.0,0.806625]
[1724910740410,0.27123753,59492.0,59491.0,0.807625]
[1724910742117,0.27123753,59492.0,59491.0,0.927625]
[1724910742512,0.27123753,59492.0,59491.0,0.94951245]
[1724910742814,0.27123753,59492.0,59491.0,0.82951245]
[1724910744818,0.27123753,59492.0,59491.0,0.46871245]
[1724910745717,0.27123753,59492.0,59491.0,0.10791245]
[1724910745915,0.27123753,59492.0,59491.0,0.46871245]
[1724910747113,0.27123753,59492.0,59491.0,0.58871245]
[1724910749516,0.18723753,59492.0,59491.0,0.75676245]
[1724910749916,0.0822,59502.0,59501.0,0.084011]
[1724910750114,0.0822,59502.0,59501.0,0.564811]
[1724910750310,0.0822,59502.0,59501.0,0.8416]
[1724910750311,0.19376092,59502.0,59501.0,0.8416]
[1724910750614,0.082,59505.0,59504.0,0.084006]
[1724910751119,0.27366042,59505.0,59504.0,0.084006]
[1724910752319,0.27366042,59505.0,59501.0,0.44777]
[1724910752510,0.27366042,59505.0,59502.0,0.02176376]
[1724910752511,0.35766542,59505.0,59502.0,0.02176376]
[1724910752712,0.084007,59504.0,59501.0,0.44581]
[1724910752922,0.083007,59504.0,59503.0,0.084008]
[1724910753215,0.26571311,59504.0,59503.0,0.084008]
[1724910753517,0.76887311,59504.0,59503.0,0.084008]
[1724910753721,0.084009,59502.0,59501.0,0.001]
[1724910753913,0.5042,59503.0,59496.0,0.00025227]
[1724910754115,0.68220916,59502.0,59496.0,0.00025227]
[1724910754320,0.17800916,59502.0,59496.0,0.00025227]
[1724910754513,0.5042,59502.0,59496.0,0.00025227]
[1724910754717,0.444816,59497.0,59496.0,0.00025227]
[1724910754918,1.187256,59497.0,59496.0,0.00025227]
[1724910755110,1.37552582,59497.0,59496.0,0.00025227]
[1724910755311,0.084018,59496.0,59484.0,0.084033]
[1724910755523,0.3608,59494.0,59484.0,0.084033]
[1724910755710,0.088,59493.0,59484.0,0.084033]
[1724910755923,0.084032,59487.0,59484.0,0.084033]
[1724910756110,0.2642121,59493.0,59481.0,0.0222473]
[1724910756111,0.176,59486.0,59481.0,0.0222473]
[1724910756415,0.082036,59483.0,59481.0,0.084039]
[1724910756725,0.176,59486.0,59482.0,0.084038]
[1724910757023,0.260032,59486.0,59484.0,0.001]
[1724910757225,0.19484535,59485.0,59484.0,0.001]
[1724910757720,0.002,59483.0,59482.0,0.084038]
[1724910758113,0.19233996,59483.0,59482.0,0.084038]
[1724910759113,0.27637596,59483.0,59482.0,0.084038]
[1724910759317,0.083038,59482.0,59480.0,0.3608]
[1724910759823,0.1755332,59481.0,59480.0,0.3608]
[1724910760018,0.1745332,59481.0,59480.0,0.3608]
[1724910760212,0.1735332,59481.0,59480.0,0.3608]
[1724910760624,0.1735332,59481.0,59480.0,0.3618]
[1724910760829,0.2575722,59481.0,59480.0,0.3618]
[1724910761126,0.2635722,59481.0,59480.0,0.002]
[1724910762430,0.2685722,59481.0,59480.0,0.002]
[1724910762925,0.2635722,59481.0,59480.0,0.001]
[1724910763123,0.2625722,59481.0,59480.0,0.001]
[1724910763427,0.2695722,59481.0,59480.0,0.002]
[1724910763621,0.7739322,59481.0,59480.0,0.002]
[1724910763925,1.3739322,59481.0,59480.0,0.002]
[1724910764422,1.4579712,59481.0,59480.0,0.002]
[1724910764816,1.7479712,59481.0,59480.0,0.002]
[1724910770629,1.1479712,59481.0,59480.0,0.002]
[1724910771329,1.7479712,59481.0,59480.0,0.002]
[1724910772230,1.5087712,59481.0,59480.0,0.002]
[1724910772431,2.1087712,59481.0,59480.0,0.002]
[1724910774430,1.7479712,59481.0,59480.0,0.002]
[1724910774633,2.1087712,59481.0,59480.0,0.002]
[1724910774932,0.084042,59479.0,59478.0,0.00025227]
[1724910775330,0.77007472,59479.0,59478.0,0.00025227]
[1724910776028,0.89007472,59479.0,59478.0,0.00025227]
[1724910776229,1.49607472,59479.0,59478.0,0.00125227]
[1724910776426,0.89607472,59479.0,59478.0,0.00125227]
[1724910776726,1.50107472,59479.0,59478.0,0.00225227]
[1724910777135,0.31263272,59479.0,59478.0,0.00225227]
[1724910777827,0.39667472,59479.0,59478.0,0.00225227]
[1724910778330,0.48071672,59479.0,59478.0,0.00225227]
[1724910778633,0.98511672,59479.0,59478.0,0.00225227]
[1724910778824,0.48071672,59479.0,59478.0,0.00225227]
[1724910779626,0.39667472,59479.0,59478.0,0.00225227]
[1724910780029,0.27667472,59479.0,59478.0,0.15406931]
[1724910780932,0.27667472,59479.0,59478.0,0.23811231]
[1724910784933,0.19263272,59479.0,59478.0,0.23811231]
[1724910787440,0.19263272,59479.0,59478.0,0.35811231]
[1724910789137,0.19263272,59479.0,59478.0,0.44215531]
[1724910789440,0.03756341,59479.0,59478.0,1.39473827]
[1724910791641,0.03756341,59479.0,59478.0,0.29033827]
[1724910792743,0.03756341,59479.0,59478.0,0.65113827]
[1724910795340,0.03756341,59479.0,59478.0,1.75553827]
[1724910795541,0.03756341,59479.0,59478.0,1.15553827]
[1724910795743,0.03756341,59479.0,59478.0,1.75553827]
[1724910796648,0.03756341,59479.0,59478.0,1.83958127]
[1724910796850,4.1e-07,59479.0,59478.0,1.83958127]
[1724910797052,0.00025227,59489.0,59488.0,0.084029]
[1724910797346,0.19383356,59489.0,59488.0,0.925629]
[1724910798344,0.20083356,59489.0,59488.0,0.926629]
[1724910798866,0.20183356,59489.0,59488.0,0.927629]
[1724910799650,0.20183356,59489.0,59488.0,2.199967]
[1724910800156,0.20183356,59489.0,59488.0,2.2218788]
[1724910801354,0.19483356,59489.0,59488.0,2.2218788]
[1724910801554,0.19483356,59489.0,59488.0,1.6218788]
[1724910801956,0.19383356,59489.0,59488.0,1.6238788]
[1724910802150,0.19383356,59489.0,59488.0,1.6258788]
[1724910802550,0.19383356,59489.0,59488.0,1.6228788]
[1724910802753,0.19383356,59489.0,59488.0,1.6258788]
[1724910803454,0.19383356,59489.0,59488.0,2.2258788]
[1724910811659,0.19383356,59489.0,59488.0,2.2248788]
[1724910812554,0.19383356,59489.0,59488.0,2.2238788]
[1724910812865,0.19383356,59489.0,59488.0,2.2228788]
[1724910813250,0.19383356,59489.0,59488.0,2.2218788]
[1724910813457,0.19383356,59489.0,59488.0,1.6218788]
[1724910814563,0.19383356,59489.0,59488.0,1.0335698]
[1724910815654,0.19383356,59489.0,59488.0,1.0325698]
[1724910816266,0.19483356,59489.0,59488.0,1.0315698]
[1724910816763,0.19483356,59489.0,59488.0,1.6325698]
[1724910816764,0.19383356,59489.0,59488.0,1.6325698]
[1724910817069,0.19383356,59489.0,59488.0,2.1368498]
[1724910817663,0.19383356,59489.0,59488.0,1.0325698]
[1724910818464,0.19383356,59489.0,59488.0,1.0335698]
[1724910819060,0.19383356,59489.0,59488.0,1.0325698]
[1724910820261,0.19383356,59489.0,59488.0,1.0315698]
[1724910822261,0.19383356,59489.0,59488.0,1.0325698]
[1724910822870,0.19383356,59489.0,59488.0,1.0335698]
[1724910826371,0.19383356,59489.0,59488.0,1.1175988]
[1724910826579,0.19383356,59489.0,59488.0,1.0335698]
[1724910827775,0.19383356,59489.0,59488.0,0.9495408]
[1724910828979,0.19383356,59489.0,59488.0,0.9485408]
[1724910829476,0.19383356,59489.0,59488.0,0.9475408]
[1724910830067,0.19383356,59489.0,59488.0,0.8635118]
[1724910832179,0.19383356,59489.0,59488.0,0.9475408]
[1724910833091,0.19383356,59489.0,59488.0,0.2259408]
[1724910833274,0.19383356,59489.0,59488.0,0.5867408]
[1724910843094,0.19383356,59489.0,59488.0,0.4667408]
[1724910843300,0.19383356,59489.0,59488.0,0.5867408]
[1724910855895,0.19383356,59489.0,59488.0,0.9475408]
[1724910856305,0.19383356,59489.0,59488.0,1.0315698]
[1724910857099,0.19383356,59489.0,59488.0,1.1155988]
[1724910861213,0.19383356,59489.0,59488.0,1.0315698]
[1724910861610,0.19383356,59489.0,59488.0,0.9115698]
[1724910861809,0.19383356,59489.0,59488.0,1.0315698]
[1724910863913,0.19383356,59489.0,59488.0,1.1155988]
[1724910867726,0.19383356,59489.0,59488.0,1.0315698]
[1724910869419,0.19383356,59489.0,59488.0,0.8275408]
[1724910869725,0.19383356,59489.0,59488.0,0.9475408]
[1724910870713,0.19383356,59489.0,59488.0,0.3827118]
[1724910870915,0.27786156,59489.0,59488.0,0.3827118]
[1724910871119,0.44176156,59489.0,59488.0,0.3827118]
[1724910871923,0.35773356,59489.0,59488.0,0.5867408]
[1724910875622,0.47773356,59489.0,59488.0,0.4667408]
[1724910876625,0.56176156,59489.0,59488.0,0.4667408]
[1724910878221,0.38320698,59489.0,59488.0,0.4667408]
[1724910880328,1.57151498,59489.0,59488.0,0.0219118]
[1724910880526,0.084036,59484.0,59479.0,0.3608]
[1724910880728,0.12,59480.0,59479.0,0.444842]
[1724910881230,0.38697272,59480.0,59479.0,0.46717885]
[1724910881632,0.38697272,59480.0,59479.0,0.48617885]
[1724910881834,0.18293272,59480.0,59479.0,0.48617885]
[1724910882126,0.0887,59488.0,59479.0,0.48617885]
[1724910882127,0.204032,59486.0,59485.0,0.084033]
[1724910882331,0.084032,59486.0,59485.0,0.444833]
[1724910882535,0.77628703,59486.0,59485.0,0.444833]
[1724910884131,0.77628703,59486.0,59485.0,0.450833]
[1724910884531,0.18793503,59486.0,59485.0,0.450833]
[1724910884831,0.2087,59488.0,59487.0,0.08403]
[1724910885234,0.38740253,59488.0,59487.0,0.08403]
[1724910886641,0.89172253,59488.0,59487.0,0.08403]
[1724910887141,0.89172253,59488.0,59487.0,0.08603]
[1724910890236,0.89172253,59488.0,59487.0,0.44683]
[1724910891537,0.80302253,59488.0,59487.0,0.44683]
[1724910893137,0.29870253,59488.0,59487.0,0.44683]
[1724910894035,0.17870253,59488.0,59487.0,0.56683]
[1724910894442,0.12,59491.0,59490.0,0.084026]
[1724910894838,0.30580735,59491.0,59490.0,0.084026]
[1724910896046,0.18580735,59491.0,59490.0,0.204026]
[1724910896541,0.084019,59495.0,59494.0,0.084021]
[1724910896745,0.084019,59495.0,59494.0,0.444821]
[1724910896944,0.2615749,59495.0,59494.0,0.444821]
[1724910897449,0.3815749,59495.0,59494.0,0.084021]
[1724910898044,0.3825749,59495.0,59494.0,0.085021]
[1724910899548,0.3825749,59495.0,59494.0,0.086021]
[1724910900647,0.8868149,59495.0,59494.0,0.086021]
[1724910903556,0.9708339,59495.0,59494.0,0.002]
[1724910904246,0.3465939,59495.0,59494.0,0.002]
[1724910904454,0.4665939,59495.0,59494.0,0.002]
[1724910904853,0.3825749,59495.0,59494.0,0.002]
[1724910905057,0.3825749,59495.0,59494.0,0.086021]
[1724910905259,0.2625749,59495.0,59494.0,0.086021]
[1724910905952,0.1785559,59495.0,59494.0,0.086021]
[1724910906157,0.1785559,59495.0,59494.0,0.206021]
[1724910906955,0.1785559,59495.0,59494.0,0.22811585]
[1724910907150,0.1785559,59495.0,59494.0,0.31213685]
[1724910907560,0.1785559,59495.0,59494.0,0.81637685]
[1724910907756,0.1785559,59495.0,59494.0,0.22811585]
[1724910916554,0.1785559,59495.0,59494.0,0.22711585]
[1724910916954,0.1775559,59495.0,59494.0,0.22611585]
[1724910917160,0.1785559,59495.0,59494.0,0.22611585]
[1724910917361,0.001,59495.0,59494.0,0.22611585]
[1724910917573,0.17647282,59495.0,59494.0,0.22611585]
[1724910922390,0.17647282,59495.0,59494.0,0.58691585]
[1724910926698,0.17647282,59495.0,59494.0,0.22611585]
[1724910926898,0.17647282,59495.0,59494.0,0.58691585]
[1724910929700,0.17647282,59495.0,59494.0,0.46691585]
[1724910931197,0.17647282,59495.0,59494.0,0.58691585]
[1724910938105,0.17647282,59495.0,59489.0,0.3608]
[1724910938307,0.12,59490.0,59489.0,0.38329276]
[1724910938506,0.12,59490.0,59489.0,0.46731876]
[1724910938809,0.30976048,59490.0,59489.0,0.46731876]
[1724910939404,0.39378648,59490.0,59489.0,0.46731876]
[1724910939603,0.39378648,59490.0,59489.0,0.3608]
[1724910939903,0.39378648,59490.0,59488.0,0.084029]
[1724910939904,0.084028,59489.0,59488.0,0.084029]
[1724910940312,0.27345673,59489.0,59488.0,0.084029]
[1724910940530,0.18942873,59489.0,59488.0,0.084029]